{"text_format":"1","workbook":"xlsx","n_sheets":2,"sheets":["Sheet1","Sheet2"],"not_rendered":{"charts":0,"images":2,"macros":1,"external_links":0,"defined_names":8,"comments":0,"pivot_tables":0},"unopened":[],"bounds":{"document_bytes":16777216,"sheet_cells":100000,"rows_first":2000,"rows_last":500,"rows_between":2000,"halvings":0,"cell_chars":16384,"cell_head_chars":4096},"cells_cut":0,"cells_raw":0,"read":"whole","date_system":"1900"}

{"sheet":"Sheet1","index":0,"n_rows":42,"n_cols":10,"rows_kept":42,"cut":false,"hidden":false,"merged":[[32,4,32,5],[33,4,33,5],[34,4,34,5],[35,4,35,5],[36,4,36,5],[42,1,42,9],[35,7,35,9],[36,7,36,9],[37,7,37,9],[38,7,38,9],[1,2,1,9],[11,1,11,9],[14,1,14,9],[37,4,37,5],[38,4,38,5],[30,7,30,9],[31,7,31,9],[32,7,32,9],[33,7,33,9],[34,7,34,9],[23,1,23,3],[23,6,23,9],[28,4,28,5],[29,4,29,5],[30,4,30,5],[31,4,31,5],[28,7,28,9],[29,7,29,9],[5,2,5,3],[7,2,7,3],[25,6,25,9],[20,6,20,9],[22,6,22,9],[5,8,5,9],[7,8,7,9],[9,8,9,9],[18,6,18,7],[18,8,18,9]]}
[]
[null,"Project Name"]
[]
[null,"Project Number",null,null,null,"Start Date",null,null,"Information Sources"]
[]
[null,"Project Manager",null,null,null,"End Date",null,null,"Name and Organization"]
[]
[null,"Principal Investigator",null,null,null,"Funding",null,null,"Name and Organization"]
[]
[null,null,null,null,null,null,null,null,"Name and Organization"]
[null,"Project Description"]
[]
[]
[null,"Project Findings"]
[]
[]
[null,"Is the Project Complete?",null,"y/n?",null,null,null,"Is Follow-up Work Planned?","y/n?"]
[]
[null,{"$f":"IF(D17=\"yes\",\"Resulted in FDOT Spec Change?\",\"\")","v":""},null,"y/n?",null,{"$f":"IF(I17=\"Yes\",\"------->>>\",\"\")","v":""},{"$f":"IF(I17=\"Yes\",\"Project Number\",\"\")","v":""},null,"see below"]
[null,null,{"$f":"IF(D19=\"Yes\",\"Spec #\",\"\")","v":""}]
[null,"What is the Implementation Status of this Project?",null,null,null,null,"The project is being implemented"]
[]
[null,{"$f":"IF(G21=\"The project can't be implemented\",\"Why can't the project be implemented?\",IF(G21=\"The project will be implemented later\",\"What has prevented implementation until now?\",IF(G21=\"The project is being implemented\",\"What is the progress to date?\",IF(G21=\"The project has been implemented\",\"What are the results of implementation?\",\"\"))))","v":"What is the progress to date?"},null,null,null,null,{"$f":"IF(G21=\"The project can't be implemented\",\"\",IF(G21=\"Enter Implementation Status\",\"\",\"What are the Expected Impacts?\"))","v":"What are the Expected Impacts?"}]
[null,"Meetings at FDOT wtih Traffic Ops and SysPlan on TT and TTR work. Next is 1/28/2010, discussion on how to use TTR estimates as an input into planning SIS improvements.",null,null,null,null,"Benefit is an accurate scoring of SIS performance, information to aid project selection to improve the SIS in the future. Less congestion, avoiding poor projects."]
[]
[null,null,null,null,null,{"$f":"IF(B23=\"What is the progress to date?\",\"Completion Date\",IF(B23=\"What are the results of implementation?\",\"Expected % Utilized\",IF(B23=\"What has prevented implementation until now?\",\"Implementation Start Date\",\"\")))","v":"Completion Date"},"check after 1/28/2011 meeting"]
[]
[null,{"$f":"IF(B23=\"What is the progress to date?\",\"Potential Future Impacts\",IF(B23=\"What are the results of implementation?\",\"What impacts have been recorded?\",IF(B23=\"What has prevented implementation until now?\",\"Potential Future Impacts\",\"\")))","v":"Potential Future Impacts"},null,null,{"$f":"IF(G21=\"Enter Implementation Status\",\"\",IF(G21=\"The project can't be implemented\",\"\",\"QTY\"))","v":"QTY"},null,{"$f":"IF(G21=\"Enter Implementation Status\",\"\",IF(G21=\"The project can't be implemented\",\"\",\"$\"))","v":"$"},{"$f":"IF(G21=\"Enter Implementation Status\",\"\",IF(G21=\"The project can't be implemented\",\"\",\"Comment\"))","v":"Comment"}]
[null,{"$f":"IF(G21=\"Enter Implementation Status\",\"\",IF(G21=\"The project can't be implemented\",\"\",\"Safety Improvements\"))","v":"Safety Improvements"},null,0]
[null,{"$f":"IF(G21=\"Enter Implementation Status\",\"\",IF(G21=\"The project can't be implemented\",\"\",\"Infrastructure Condition\"))","v":"Infrastructure Condition"},null,0]
[null,{"$f":"IF(G21=\"Enter Implementation Status\",\"\",IF(G21=\"The project can't be implemented\",\"\",\"Congestion Reduction (TT, gas)\"))","v":"Congestion Reduction (TT, gas)"},null,1,null,null,null,"reduced congestion"]
[null,{"$f":"IF(G21=\"Enter Implementation Status\",\"\",IF(G21=\"The project can't be implemented\",\"\",\"System Reliability Improved\"))","v":"System Reliability Improved"},null,0]
[null,{"$f":"IF(G21=\"Enter Implementation Status\",\"\",IF(G21=\"The project can't be implemented\",\"\",\"Freight/Economic Benefit\"))","v":"Freight/Economic Benefit"},null,0]
[null,{"$f":"IF(G21=\"Enter Implementation Status\",\"\",IF(G21=\"The project can't be implemented\",\"\",\"Environmental Benefit\"))","v":"Environmental Benefit"},null,0]
[null,{"$f":"IF(G21=\"Enter Implementation Status\",\"\",IF(G21=\"The project can't be implemented\",\"\",\"Project Time Reduced\"))","v":"Project Time Reduced"},null,1]
[null,{"$f":"IF(G21=\"Enter Implementation Status\",\"\",IF(G21=\"The project can't be implemented\",\"\",\"Materials Saved\"))","v":"Materials Saved"},null,1]
[null,{"$f":"IF(G21=\"Enter Implementation Status\",\"\",IF(G21=\"The project can't be implemented\",\"\",\"Man Hours Saved\"))","v":"Man Hours Saved"},null,1]
[null,{"$f":"IF(G21=\"Enter Implementation Status\",\"\",IF(G21=\"The project can't be implemented\",\"\",\"Variation Reduced (Process, Matl)\"))","v":"Variation Reduced (Process, Matl)"},null,0]
[null,{"$f":"IF(G21=\"Enter Implementation Status\",\"\",IF(G21=\"The project can't be implemented\",\"\",\"Liability to FDOT Reduced\"))","v":"Liability to FDOT Reduced"},null,0]
[null,null,null,null,{"$f":"IF(G21=\"Enter Implementation Status\",\"\",IF(G21=\"The project can't be implemented\",\"\",\"Sum\"))","v":"Sum"},null,{"$f":"SUM(G29:G39)","v":0}]
[null,null,null,null,{"$f":"IF(G21=\"Enter Implementation Status\",\"\",IF(G21=\"The project can't be implemented\",\"\",\"Years Applicable\"))","v":"Years Applicable"},null,null,null,{"$f":"IF(G21=\"Enter Implementation Status\",\"\",IF(G21=\"The project can't be implemented\",\"\",\"Total\"))","v":"Total"},{"$f":"IF(G41>0,G40*G41,G40)","v":0}]
[null,"Other Comments"]

{"sheet":"Sheet2","index":1,"n_rows":17,"n_cols":11,"rows_kept":17,"cut":false,"hidden":true,"merged":[]}
[null,null,"Enter Implementation Status"]
[null,"y/n?","The project can't be implemented",null,null,null,null,"Not an improvement","Staff resources","Expected completion date","What impacts documented?"]
[null,"Yes","The project will be implemented later",null,null,null,null,"FDOT decision","Waiting on spec change","Expected % utilized","What % utilized"]
[null,"No","The project is being implemented",null,null,null,null,"More testing needed","Waiting on follow-up project"]
[null,null,"The project has been implemented",null,null,null,null,"Other","FDOT decision"]
[null,null,null,null,null,null,null,null,"Other"]
[null,null,"Materials Saved"]
[null,null,"Man Hours Saved(project planning, construction, testing)"]
[null,null,"Project Time Reduced"]
[null,null,"Energy Saved"]
[null,null,"Safety Improvements"]
[null,null,"Pollution Reduced"]
[null,null,"Variation in Processes Reduced"]
[null,null,"Variation in Materials Reduced"]
[null,null,"Liability to FDOT Reduced"]
[null,null,"Gas Consumption Reduced"]
[null,null,"Travel Time to Public Reduced"]